[Event "Early-Titled-Tuesday-Blitz-May-14-2024"]
[Site "Chess.com"]
[Date "2024.05.14"]
[Round "2"]
[White "CaspiIsrael"]
[Black "PeshkaCh"]
[Result "1/2-1/2"]
[WhiteElo "2609"]
[BlackElo "2885"]
[TimeControl "180+1"]
[EndTime "8:19:59 PDT"]
[Termination "Game drawn - insufficient material"]

1. e3 {[%clk 0:02:59.8]} 1... Nf6 {[%clk 0:02:55.4]} 2. d4 {[%clk 0:02:59.4]}
2... g6 {[%clk 0:02:54.4]} 3. Nf3 {[%clk 0:02:59.9]} 3... Bg7 {[%clk 0:02:55.1]}
4. b4 {[%clk 0:02:59.5]} 4... a5 {[%clk 0:02:54.3]} 5. b5 {[%clk 0:02:59.5]}
5... O-O {[%clk 0:02:54.2]} 6. c4 {[%clk 0:02:58.2]} 6... c6 {[%clk 0:02:54.3]}
7. a4 {[%clk 0:02:57.9]} 7... d5 {[%clk 0:02:54.5]} 8. Bb2 {[%clk 0:02:58]} 8...
Bg4 {[%clk 0:02:44.5]} 9. Nbd2 {[%clk 0:02:57.4]} 9... Ne4 {[%clk 0:02:43.2]}
10. Be2 {[%clk 0:02:51.4]} 10... Nxd2 {[%clk 0:02:13.2]} 11. Nxd2 {[%clk
0:02:51.2]} 11... Bxe2 {[%clk 0:02:13.5]} 12. Qxe2 {[%clk 0:02:52.1]} 12... Nd7
{[%clk 0:02:12.4]} 13. cxd5 {[%clk 0:02:48.4]} 13... cxd5 {[%clk 0:02:11.8]} 14.
O-O {[%clk 0:02:48.6]} 14... Nb6 {[%clk 0:02:08.2]} 15. Rfc1 {[%clk 0:02:44.3]}
15... Rc8 {[%clk 0:01:59.9]} 16. Rxc8 {[%clk 0:02:42.8]} 16... Qxc8 {[%clk
0:02:00.8]} 17. Rc1 {[%clk 0:02:42.2]} 17... Qf5 {[%clk 0:01:53.3]} 18. Qd1
{[%clk 0:02:26.4]} 18... Rc8 {[%clk 0:01:27]} 19. Bc3 {[%clk 0:02:17.4]} 19...
Qd3 {[%clk 0:01:12.5]} 20. Bxa5 {[%clk 0:02:16.6]} 20... Rxc1 {[%clk 0:01:13.1]}
21. Qxc1 {[%clk 0:02:14.7]} 21... Nxa4 {[%clk 0:01:13.8]} 22. Qc8+ {[%clk
0:02:09.3]} 22... Bf8 {[%clk 0:01:12.8]} 23. Qxb7 {[%clk 0:02:09.9]} 23... Qe2
{[%clk 0:00:53.6]} 24. Nf1 {[%clk 0:02:00.1]} 24... Nb2 {[%clk 0:00:45.4]} 25.
Qxd5 {[%clk 0:01:48.1]} 25... Nd1 {[%clk 0:00:45.6]} 26. Qf3 {[%clk 0:01:46.4]}
26... Qxb5 {[%clk 0:00:46.1]} 27. Qxd1 {[%clk 0:01:44.1]} 27... Qxa5 {[%clk
0:00:46.1]} 28. g3 {[%clk 0:01:44.1]} 28... e6 {[%clk 0:00:46.2]} 29. h4 {[%clk
0:01:43.3]} 29... Bb4 {[%clk 0:00:46]} 30. Qf3 {[%clk 0:01:43.4]} 30... h5
{[%clk 0:00:46.2]} 31. Kg2 {[%clk 0:01:43.9]} 31... Kg7 {[%clk 0:00:46.1]} 32.
Qe4 {[%clk 0:01:43.5]} 32... Bc3 {[%clk 0:00:45.8]} 33. Nh2 {[%clk 0:01:43.9]}
33... Bb4 {[%clk 0:00:36.6]} 34. Nf3 {[%clk 0:01:44.3]} 34... Bd6 {[%clk
0:00:35.9]} 35. Ng5 {[%clk 0:01:44.1]} 35... Be7 {[%clk 0:00:33.8]} 36. Nh3
{[%clk 0:01:40.4]} 36... Bf6 {[%clk 0:00:32.9]} 37. Nf4 {[%clk 0:01:40.3]} 37...
Qb5 {[%clk 0:00:30.3]} 38. Kf3 {[%clk 0:01:38.8]} 38... Qf1 {[%clk 0:00:27.2]}
39. Qd3 {[%clk 0:01:37.4]} 39... Qh1+ {[%clk 0:00:26.3]} 40. Ke2 {[%clk
0:01:37.5]} 40... Qa1 {[%clk 0:00:25.4]} 41. Qc2 {[%clk 0:01:35.1]} 41... Qa6+
{[%clk 0:00:25.4]} 42. Kf3 {[%clk 0:01:31.4]} 42... e5 {[%clk 0:00:23.9]} 43.
dxe5 {[%clk 0:01:27.5]} 43... Bxe5 {[%clk 0:00:24.8]} 44. Nd3 {[%clk 0:01:25.3]}
44... Bf6 {[%clk 0:00:24.5]} 45. Ke2 {[%clk 0:01:22.9]} 45... Qb5 {[%clk
0:00:24.1]} 46. Qd2 {[%clk 0:01:20.3]} 46... Qc4 {[%clk 0:00:24]} 47. f3 {[%clk
0:01:19.7]} 47... Qb3 {[%clk 0:00:22.2]} 48. e4 {[%clk 0:01:18.8]} 48... Bc3
{[%clk 0:00:21.4]} 49. Qe3 {[%clk 0:01:07.6]} 49... Qa2+ {[%clk 0:00:21.2]} 50.
Kf1 {[%clk 0:01:07.7]} 50... Qb1+ {[%clk 0:00:21]} 51. Kg2 {[%clk 0:01:06.7]}
51... Qc2+ {[%clk 0:00:21.6]} 52. Nf2 {[%clk 0:01:05.3]} 52... Qb2 {[%clk
0:00:21.2]} 53. f4 {[%clk 0:00:57]} 53... Bd4 {[%clk 0:00:21.8]} 54. Qe1 {[%clk
0:00:57.2]} 54... Qc2 {[%clk 0:00:19.7]} 55. e5 {[%clk 0:00:57]} 55... Qc6+
{[%clk 0:00:19.8]} 56. Kf1 {[%clk 0:00:53.1]} 56... Qf3 {[%clk 0:00:19.1]} 57.
Qd2 {[%clk 0:00:45.7]} 57... Be3 {[%clk 0:00:16.6]} 58. Qb2 {[%clk 0:00:37]}
58... Kg8 {[%clk 0:00:11.6]} 59. Qa2 {[%clk 0:00:19.3]} 59... Kg7 {[%clk
0:00:11]} 60. Qb2 {[%clk 0:00:17.1]} 60... Kg8 {[%clk 0:00:11.2]} 61. Qa2 {[%clk
0:00:17.3]} 61... Qxg3 {[%clk 0:00:10.9]} 62. e6 {[%clk 0:00:17.3]} 62... fxe6
{[%clk 0:00:02.4]} 63. Qxe6+ {[%clk 0:00:16.8]} 63... Kf8 {[%clk 0:00:02.7]} 64.
Qf6+ {[%clk 0:00:16.3]} 64... Ke8 {[%clk 0:00:03.3]} 65. Qe6+ {[%clk 0:00:16]}
65... Kd8 {[%clk 0:00:04]} 66. Qd6+ {[%clk 0:00:16.4]} 66... Kc8 {[%clk
0:00:04.6]} 67. Qc6+ {[%clk 0:00:16.7]} 67... Kb8 {[%clk 0:00:05.3]} 68. Qd6+
{[%clk 0:00:17]} 68... Kb7 {[%clk 0:00:05.6]} 69. Qd5+ {[%clk 0:00:17.1]} 69...
Kb6 {[%clk 0:00:05.9]} 70. Qe6+ {[%clk 0:00:17]} 70... Kb5 {[%clk 0:00:06.1]}
71. Qd5+ {[%clk 0:00:15.6]} 71... Bc5 {[%clk 0:00:05.8]} 72. Qxc5+ {[%clk
0:00:14.9]} 72... Kxc5 {[%clk 0:00:05]} 73. Ne4+ {[%clk 0:00:15.4]} 73... Kd4
{[%clk 0:00:05.5]} 74. Nxg3 {[%clk 0:00:16]} 74... Ke3 {[%clk 0:00:06.2]} 75.
Nxh5 {[%clk 0:00:13.8]} 75... Kf3 {[%clk 0:00:05]} 76. Kg1 {[%clk 0:00:07.8]}
76... Kg4 {[%clk 0:00:04.7]} 77. Nf6+ {[%clk 0:00:04.9]} 77... Kxf4 {[%clk
0:00:04]} 78. Kh2 {[%clk 0:00:05.3]} 78... Kf5 {[%clk 0:00:04.3]} 79. Nd5 {[%clk
0:00:05.2]} 79... Kg4 {[%clk 0:00:04.9]} 80. Ne7 {[%clk 0:00:05.3]} 80... Kxh4
{[%clk 0:00:05.3]} 81. Nxg6+ {[%clk 0:00:05.7]} 1/2-1/2

[Event "Early-Titled-Tuesday-Blitz-May-14-2024"]
[Site "Chess.com"]
[Date "2024.05.14"]
[Round "2"]
[White "xakevicius91"]
[Black "ChessboArt"]
[Result "0-1"]
[WhiteElo "2495"]
[BlackElo "2262"]
[TimeControl "180+1"]
[EndTime "8:20:01 PDT"]
[Termination "ChessboArt won by checkmate"]

1. e4 {[%clk 0:02:59.8]} 1... c6 {[%clk 0:02:52.6]} 2. d4 {[%clk 0:02:58.6]}
2... d5 {[%clk 0:02:53.5]} 3. e5 {[%clk 0:02:59.2]} 3... g6 {[%clk 0:02:52.2]}
4. Bd3 {[%clk 0:02:55.7]} 4... Bg7 {[%clk 0:02:52.3]} 5. Nd2 {[%clk 0:02:53.2]}
5... Nh6 {[%clk 0:02:52.2]} 6. Ne2 {[%clk 0:02:51.3]} 6... f6 {[%clk 0:02:52.4]}
7. exf6 {[%clk 0:02:45.9]} 7... exf6 {[%clk 0:02:52.2]} 8. O-O {[%clk
0:02:46.8]} 8... O-O {[%clk 0:02:52.3]} 9. h3 {[%clk 0:02:47.3]} 9... Re8 {[%clk
0:02:52.5]} 10. Nf3 {[%clk 0:02:47.8]} 10... Nd7 {[%clk 0:02:46.3]} 11. c4
{[%clk 0:02:48.3]} 11... Nb6 {[%clk 0:02:43.2]} 12. b3 {[%clk 0:02:47.1]} 12...
Be6 {[%clk 0:02:41.6]} 13. Qc2 {[%clk 0:02:43.2]} 13... Qd7 {[%clk 0:02:36.2]}
14. a4 {[%clk 0:02:40.6]} 14... a5 {[%clk 0:02:34.3]} 15. Nf4 {[%clk 0:02:35.9]}
15... Bf5 {[%clk 0:02:29.4]} 16. Bd2 {[%clk 0:02:30.2]} 16... Bxd3 {[%clk
0:02:02.3]} 17. Nxd3 {[%clk 0:02:28.8]} 17... Nf5 {[%clk 0:01:59]} 18. g4 {[%clk
0:02:18.2]} 18... Nxd4 {[%clk 0:01:32.3]} 19. Nxd4 {[%clk 0:02:09.4]} 19... dxc4
{[%clk 0:01:32.3]} 20. Nc5 {[%clk 0:01:29.2]} 20... Qxd4 {[%clk 0:01:29.5]} 21.
Be3 {[%clk 0:01:29.5]} 21... Rxe3 {[%clk 0:01:26.9]} 22. fxe3 {[%clk 0:01:30.4]}
22... Qxc5 {[%clk 0:01:23.3]} 23. Rfe1 {[%clk 0:01:21.1]} 23... Re8 {[%clk
0:01:19.2]} 24. Kf2 {[%clk 0:01:14.9]} 24... f5 {[%clk 0:01:18.5]} 25. Rad1
{[%clk 0:01:13.6]} 25... f4 {[%clk 0:01:18.2]} 26. Re2 {[%clk 0:00:53.6]} 26...
fxe3+ {[%clk 0:01:13.4]} 27. Kg1 {[%clk 0:00:52.3]} 27... Qe5 {[%clk 0:01:09.3]}
28. bxc4 {[%clk 0:00:50.1]} 28... Qg3+ {[%clk 0:01:09]} 29. Rg2 {[%clk
0:00:50.1]} 29... Qxh3 {[%clk 0:01:02]} 30. Qe2 {[%clk 0:00:49.2]} 30... c5
{[%clk 0:00:48.4]} 31. Rd6 {[%clk 0:00:46]} 31... Nc8 {[%clk 0:00:42.3]} 32. Rd7
{[%clk 0:00:43.1]} 32... Bd4 {[%clk 0:00:39.1]} 33. Rh2 {[%clk 0:00:39.1]} 33...
Qg3+ {[%clk 0:00:38.1]} 34. Rg2 {[%clk 0:00:39.7]} 34... Qf4 {[%clk 0:00:34.2]}
35. Rxb7 {[%clk 0:00:36.6]} 35... Rf8 {[%clk 0:00:32.3]} 36. Rb1 {[%clk
0:00:30.1]} 36... Nd6 {[%clk 0:00:31.2]} 37. Rf1 {[%clk 0:00:29.6]} 37... Qxf1+
{[%clk 0:00:30.9]} 38. Qxf1 {[%clk 0:00:30.5]} 38... Rxf1+ {[%clk 0:00:31]} 39.
Kxf1 {[%clk 0:00:30.5]} 39... Nxc4 {[%clk 0:00:31.6]} 40. Ke2 {[%clk 0:00:31.1]}
40... Ne5 {[%clk 0:00:31.5]} 41. Rg1 {[%clk 0:00:30.7]} 41... Kf7 {[%clk
0:00:31.3]} 42. Rb1 {[%clk 0:00:30.2]} 42... Nxg4 {[%clk 0:00:29.5]} 43. Rb5
{[%clk 0:00:30.6]} 43... Bc3 {[%clk 0:00:24.2]} 44. Rxc5 {[%clk 0:00:29]} 44...
Bd2 {[%clk 0:00:24.9]} 45. Rc4 {[%clk 0:00:27.2]} 45... Nf6 {[%clk 0:00:23.5]}
46. Rc5 {[%clk 0:00:26.3]} 46... h5 {[%clk 0:00:23.2]} 47. Rc8 {[%clk
0:00:26.6]} 47... Ke6 {[%clk 0:00:23.4]} 48. Rc7 {[%clk 0:00:27.5]} 48... Kf5
{[%clk 0:00:23.6]} 49. Rc6 {[%clk 0:00:27.9]} 49... h4 {[%clk 0:00:22]} 50. Rc5+
{[%clk 0:00:28.1]} 50... Kf4 {[%clk 0:00:21.6]} 51. Rc4+ {[%clk 0:00:28]} 51...
Ne4 {[%clk 0:00:21.8]} 52. Kd3 {[%clk 0:00:27.8]} 52... g5 {[%clk 0:00:13.5]}
53. Rxe4+ {[%clk 0:00:28.7]} 53... Kf3 {[%clk 0:00:14]} 54. Re8 {[%clk
0:00:25.7]} 54... h3 {[%clk 0:00:14.3]} 55. Rf8+ {[%clk 0:00:26.2]} 55... Kg2
{[%clk 0:00:14.3]} 56. Rg8 {[%clk 0:00:19.3]} 56... h2 {[%clk 0:00:08.4]} 57.
Rxg5+ {[%clk 0:00:19.5]} 57... Kf2 {[%clk 0:00:08]} 58. Rh5 {[%clk 0:00:19.8]}
58... Kg1 {[%clk 0:00:07.4]} 59. Rg5+ {[%clk 0:00:19.6]} 59... Kf1 {[%clk
0:00:08]} 60. Rf5+ {[%clk 0:00:18.8]} 60... Kg1 {[%clk 0:00:05.6]} 61. Rg5+
{[%clk 0:00:18.3]} 61... Kf1 {[%clk 0:00:05.8]} 62. Rf5+ {[%clk 0:00:18.4]}
62... Kg2 {[%clk 0:00:04.2]} 63. Rg5+ {[%clk 0:00:17.5]} 63... Kh3 {[%clk
0:00:04.4]} 64. Rh5+ {[%clk 0:00:17.7]} 64... Kg3 {[%clk 0:00:05]} 65. Ke2
{[%clk 0:00:17.1]} 65... Bc1 {[%clk 0:00:04.6]} 66. Rh8 {[%clk 0:00:16.5]} 66...
Bd2 {[%clk 0:00:02.8]} 67. Rg8+ {[%clk 0:00:16.2]} 67... Kh3 {[%clk 0:00:03.3]}
68. Rh8+ {[%clk 0:00:15.1]} 68... Kg3 {[%clk 0:00:03.3]} 69. Rh7 {[%clk
0:00:14.5]} 69... Kg2 {[%clk 0:00:03.4]} 70. Rg7+ {[%clk 0:00:14.4]} 70... Kh3
{[%clk 0:00:03.1]} 71. Rh7+ {[%clk 0:00:11.5]} 71... Kg3 {[%clk 0:00:03.5]} 72.
Rg7+ {[%clk 0:00:08.2]} 72... Kh3 {[%clk 0:00:03.7]} 73. Rh7+ {[%clk 0:00:08.2]}
73... Kg3 {[%clk 0:00:04.1]} 74. Kf1 {[%clk 0:00:07.7]} 74... Bc1 {[%clk
0:00:02.7]} 75. Rh8 {[%clk 0:00:06.8]} 75... Bb2 {[%clk 0:00:01.4]} 76. Rh6
{[%clk 0:00:06.3]} 76... Be5 {[%clk 0:00:00.6]} 77. Rh5 {[%clk 0:00:06.2]} 77...
Bf4 {[%clk 0:00:00.2]} 78. Rh7 {[%clk 0:00:06]} 78... Kf3 {[%clk 0:00:00.3]} 79.
Rh3+ {[%clk 0:00:05.6]} 79... Bg3 {[%clk 0:00:00.4]} 80. Rh7 {[%clk 0:00:02.4]}
80... e2# {[%clk 0:00:00.5]} 0-1

[Event "Early-Titled-Tuesday-Blitz-May-14-2024"]
[Site "Chess.com"]
[Date "2024.05.14"]
[Round "2"]
[White "CSB7"]
[Black "wild3000"]
[Result "1-0"]
[WhiteElo "2773"]
[BlackElo "2501"]
[TimeControl "180+1"]
[EndTime "8:20:07 PDT"]
[Termination "CSB7 won by checkmate"]

1. d4 {[%clk 0:03:00.9]} 1... d5 {[%clk 0:02:42.1]} 2. c4 {[%clk 0:03:00.6]}
2... e6 {[%clk 0:02:42.2]} 3. Nf3 {[%clk 0:02:57]} 3... Nf6 {[%clk 0:02:42.2]}
4. g3 {[%clk 0:02:57.1]} 4... Bb4+ {[%clk 0:02:41.5]} 5. Nbd2 {[%clk 0:02:52.7]}
5... O-O {[%clk 0:02:38.9]} 6. Bg2 {[%clk 0:02:52.8]} 6... dxc4 {[%clk
0:02:37.2]} 7. Qc2 {[%clk 0:02:52.9]} 7... Bd7 {[%clk 0:02:28.7]} 8. Qxc4 {[%clk
0:02:36.8]} 8... Bxd2+ {[%clk 0:02:20.5]} 9. Bxd2 {[%clk 0:02:34.5]} 9... Bc6
{[%clk 0:02:21]} 10. O-O {[%clk 0:02:29.7]} 10... Nbd7 {[%clk 0:02:17.8]} 11.
Rac1 {[%clk 0:02:28.2]} 11... Nb6 {[%clk 0:02:16.2]} 12. Qb4 {[%clk 0:02:12.6]}
12... Qd6 {[%clk 0:01:49.6]} 13. Rfd1 {[%clk 0:01:50.6]} 13... Qxb4 {[%clk
0:01:44.5]} 14. Bxb4 {[%clk 0:01:50.2]} 14... Rfd8 {[%clk 0:01:41.4]} 15. Ba5
{[%clk 0:01:44.6]} 15... Rac8 {[%clk 0:01:36.2]} 16. Ne5 {[%clk 0:01:40.9]}
16... Bxg2 {[%clk 0:01:34.7]} 17. Kxg2 {[%clk 0:01:41.8]} 17... Rd5 {[%clk
0:01:08.4]} 18. Bb4 {[%clk 0:01:37.9]} 18... h5 {[%clk 0:00:52.4]} 19. f3 {[%clk
0:01:37.3]} 19... a5 {[%clk 0:00:42]} 20. Ba3 {[%clk 0:01:35.5]} 20... c6 {[%clk
0:00:30.8]} 21. e4 {[%clk 0:01:32.9]} 21... Rdd8 {[%clk 0:00:30.7]} 22. Kf2
{[%clk 0:01:25.6]} 22... Nfd7 {[%clk 0:00:19.7]} 23. Nd3 {[%clk 0:01:24.4]}
23... f6 {[%clk 0:00:18.6]} 24. Be7 {[%clk 0:01:15.5]} 24... Re8 {[%clk
0:00:18.5]} 25. Bd6 {[%clk 0:01:16.2]} 25... Kf7 {[%clk 0:00:18.5]} 26. Rc3
{[%clk 0:01:12]} 26... Rh8 {[%clk 0:00:18.2]} 27. Rb3 {[%clk 0:01:09.9]} 27...
a4 {[%clk 0:00:17]} 28. Rb4 {[%clk 0:01:09.7]} 28... Ra8 {[%clk 0:00:17]} 29.
Nc5 {[%clk 0:01:09.2]} 29... Ra7 {[%clk 0:00:13.6]} 30. Rd3 {[%clk 0:01:01.3]}
30... h4 {[%clk 0:00:13.4]} 31. g4 {[%clk 0:01:00.1]} 31... h3 {[%clk
0:00:13.7]} 32. Bc7 {[%clk 0:00:53.8]} 32... Na8 {[%clk 0:00:08.5]} 33. Bg3
{[%clk 0:00:49.1]} 33... b6 {[%clk 0:00:08.6]} 34. Nxa4 {[%clk 0:00:46.9]} 34...
c5 {[%clk 0:00:08]} 35. dxc5 {[%clk 0:00:46.5]} 35... Nxc5 {[%clk 0:00:08.2]}
36. Nxc5 {[%clk 0:00:42.9]} 36... bxc5 {[%clk 0:00:09.1]} 37. Rb5 {[%clk
0:00:43.2]} 37... Rxa2 {[%clk 0:00:09.2]} 38. Rd7+ {[%clk 0:00:40.2]} 38... Kg6
{[%clk 0:00:09.1]} 39. Rbb7 {[%clk 0:00:40.4]} 39... Rg8 {[%clk 0:00:09.2]} 40.
Bd6 {[%clk 0:00:38.6]} 40... c4 {[%clk 0:00:09.2]} 41. Kg3 {[%clk 0:00:38.6]}
41... c3 {[%clk 0:00:07]} 42. bxc3 {[%clk 0:00:28.7]} 42... Rg2+ {[%clk
0:00:06.8]} 43. Kxh3 {[%clk 0:00:20.8]} 43... Rg1 {[%clk 0:00:07]} 44. Bg3
{[%clk 0:00:21.5]} 44... Rh8+ {[%clk 0:00:05.8]} 45. Bh4 {[%clk 0:00:22.1]}
45... Rh7 {[%clk 0:00:06.4]} 46. e5 {[%clk 0:00:20.4]} 46... fxe5 {[%clk
0:00:05.7]} 47. Re7 {[%clk 0:00:20.9]} 47... Kh6 {[%clk 0:00:04.5]} 48. Rxe6+
{[%clk 0:00:20.4]} 48... g6 {[%clk 0:00:05.4]} 49. Rxh7+ {[%clk 0:00:19.6]}
49... Kxh7 {[%clk 0:00:06.3]} 50. Rxe5 {[%clk 0:00:19.8]} 50... Nb6 {[%clk
0:00:06.1]} 51. Bf2 {[%clk 0:00:19.7]} 51... Rf1 {[%clk 0:00:06]} 52. Bxb6
{[%clk 0:00:19.7]} 52... Rxf3+ {[%clk 0:00:06.1]} 53. Kg2 {[%clk 0:00:20.1]}
53... Rxc3 {[%clk 0:00:07]} 54. Be3 {[%clk 0:00:20.2]} 54... Kg7 {[%clk
0:00:06.3]} 55. Kf3 {[%clk 0:00:20.5]} 55... Rc2 {[%clk 0:00:06.2]} 56. h4
{[%clk 0:00:19.6]} 56... Kf6 {[%clk 0:00:06.6]} 57. Re4 {[%clk 0:00:19.5]} 57...
Rc6 {[%clk 0:00:05.1]} 58. Bg5+ {[%clk 0:00:19.5]} 58... Kf7 {[%clk 0:00:04.7]}
59. Re7+ {[%clk 0:00:20.4]} 59... Kf8 {[%clk 0:00:04.9]} 60. Re5 {[%clk
0:00:20.1]} 60... Rc3+ {[%clk 0:00:05]} 61. Kf4 {[%clk 0:00:19.9]} 61... Rc4+
{[%clk 0:00:05.2]} 62. Re4 {[%clk 0:00:20.2]} 62... Rc5 {[%clk 0:00:04.9]} 63.
Bf6 {[%clk 0:00:20.3]} 63... Kf7 {[%clk 0:00:05.1]} 64. Bd4 {[%clk 0:00:20.9]}
64... Rb5 {[%clk 0:00:04.9]} 65. Re5 {[%clk 0:00:21]} 65... Rb4 {[%clk 0:00:05]}
66. Ke4 {[%clk 0:00:21.3]} 66... Rb3 {[%clk 0:00:04.2]} 67. h5 {[%clk
0:00:20.4]} 67... gxh5 {[%clk 0:00:04.4]} 68. Rxh5 {[%clk 0:00:20.8]} 68... Kg6
{[%clk 0:00:04.5]} 69. Rf5 {[%clk 0:00:19.2]} 69... Rg3 {[%clk 0:00:04.5]} 70.
Kf4 {[%clk 0:00:19]} 70... Rg2 {[%clk 0:00:04.5]} 71. Rd5 {[%clk 0:00:18.2]}
71... Rc2 {[%clk 0:00:03.6]} 72. Rd6+ {[%clk 0:00:18.1]} 72... Kf7 {[%clk
0:00:03.9]} 73. g5 {[%clk 0:00:18.5]} 73... Ke7 {[%clk 0:00:04.1]} 74. Rf6
{[%clk 0:00:15.9]} 74... Rc4 {[%clk 0:00:04.7]} 75. Ke5 {[%clk 0:00:15.6]} 75...
Ra4 {[%clk 0:00:05.1]} 76. Kd5 {[%clk 0:00:15.1]} 76... Ra5+ {[%clk 0:00:05.4]}
77. Bc5+ {[%clk 0:00:15.5]} 77... Kd7 {[%clk 0:00:05.8]} 78. g6 {[%clk
0:00:15.3]} 78... Ra2 {[%clk 0:00:05.5]} 79. Rf7+ {[%clk 0:00:15.6]} 79... Ke8
{[%clk 0:00:05]} 80. Rf8+ {[%clk 0:00:16.1]} 80... Kd7 {[%clk 0:00:05.1]} 81. g7
{[%clk 0:00:16.5]} 81... Rd2+ {[%clk 0:00:05.5]} 82. Bd4 {[%clk 0:00:16.6]}
82... Ke7 {[%clk 0:00:04.7]} 83. g8=Q {[%clk 0:00:14.6]} 83... Rg2 {[%clk
0:00:03.8]} 84. Qf7# {[%clk 0:00:08.7]} 1-0

[Event "Early-Titled-Tuesday-Blitz-May-14-2024"]
[Site "Chess.com"]
[Date "2024.05.14"]
[Round "2"]
[White "ClauAmura"]
[Black "Slovineanu"]
[Result "1/2-1/2"]
[WhiteElo "2312"]
[BlackElo "2485"]
[TimeControl "180+1"]
[EndTime "8:20:10 PDT"]
[Termination "Game drawn by repetition"]

1. d4 {[%clk 0:03:00.9]} 1... Nf6 {[%clk 0:02:58.5]} 2. Bg5 {[%clk 0:03:00]}
2... e6 {[%clk 0:02:56.3]} 3. e4 {[%clk 0:02:55.3]} 3... h6 {[%clk 0:02:55.8]}
4. Bxf6 {[%clk 0:02:55.2]} 4... Qxf6 {[%clk 0:02:55.7]} 5. Nc3 {[%clk
0:02:55.8]} 5... g6 {[%clk 0:02:52.5]} 6. Qd2 {[%clk 0:02:48.9]} 6... Bg7 {[%clk
0:02:51.7]} 7. O-O-O {[%clk 0:02:47.4]} 7... O-O {[%clk 0:02:48.6]} 8. f4 {[%clk
0:02:46.8]} 8... d6 {[%clk 0:02:45.5]} 9. Nf3 {[%clk 0:02:46.3]} 9... a6 {[%clk
0:02:43.7]} 10. g4 {[%clk 0:02:44.6]} 10... b5 {[%clk 0:02:39.2]} 11. g5 {[%clk
0:02:44.3]} 11... Qe7 {[%clk 0:02:37.1]} 12. gxh6 {[%clk 0:02:41.6]} 12... Bxh6
{[%clk 0:02:37.3]} 13. h4 {[%clk 0:02:36.2]} 13... Bb7 {[%clk 0:02:12.3]} 14.
Bd3 {[%clk 0:02:33.2]} 14... c5 {[%clk 0:01:55.5]} 15. h5 {[%clk 0:02:14.9]}
15... cxd4 {[%clk 0:01:44.2]} 16. Ne2 {[%clk 0:02:04.9]} 16... Bg7 {[%clk
0:01:18.3]} 17. hxg6 {[%clk 0:02:01.9]} 17... f5 {[%clk 0:01:17]} 18. Ng5 {[%clk
0:01:42.4]} 18... Nd7 {[%clk 0:01:13.7]} 19. Rh7 {[%clk 0:01:35.7]} 19... Nf6
{[%clk 0:01:11.8]} 20. Rxg7+ {[%clk 0:01:31.8]} 20... Kxg7 {[%clk 0:01:06.7]}
21. exf5 {[%clk 0:01:29.1]} 21... exf5 {[%clk 0:01:05.4]} 22. Ng3 {[%clk
0:01:29.1]} 22... Be4 {[%clk 0:01:00.7]} 23. Nxf5+ {[%clk 0:01:17]} 23... Bxf5
{[%clk 0:01:00.5]} 24. Bxf5 {[%clk 0:01:16.9]} 24... Qe3 {[%clk 0:00:37]} 25.
Ne6+ {[%clk 0:01:13.8]} 25... Kg8 {[%clk 0:00:36.2]} 26. Nxf8 {[%clk 0:01:12]}
26... Rxf8 {[%clk 0:00:35.4]} 27. Re1 {[%clk 0:00:44.4]} 27... Qxd2+ {[%clk
0:00:29.7]} 28. Kxd2 {[%clk 0:00:43.8]} 28... Nh5 {[%clk 0:00:25.9]} 29. Be6+
{[%clk 0:00:42.1]} 29... Kg7 {[%clk 0:00:26.4]} 30. f5 {[%clk 0:00:42.1]} 30...
Ng3 {[%clk 0:00:21.1]} 31. Kd3 {[%clk 0:00:33.8]} 31... Nxf5 {[%clk 0:00:20.5]}
32. Rf1 {[%clk 0:00:30.3]} 32... Kxg6 {[%clk 0:00:18.6]} 33. Rg1+ {[%clk
0:00:24.7]} 33... Kh6 {[%clk 0:00:09.9]} 34. Rf1 {[%clk 0:00:24.2]} 34... Kg5
{[%clk 0:00:09.9]} 35. Rg1+ {[%clk 0:00:22.1]} 35... Kf4 {[%clk 0:00:09.2]} 36.
Rf1+ {[%clk 0:00:18.8]} 36... Ke5 {[%clk 0:00:08.7]} 37. Bxf5 {[%clk 0:00:17.7]}
37... Rxf5 {[%clk 0:00:08.9]} 38. Re1+ {[%clk 0:00:18.1]} 38... Kd5 {[%clk
0:00:08.5]} 39. Re7 {[%clk 0:00:17.6]} 39... Rf3+ {[%clk 0:00:08.1]} 40. Kd2
{[%clk 0:00:18]} 40... Rh3 {[%clk 0:00:06.8]} 41. Ra7 {[%clk 0:00:17.1]} 41...
Ke4 {[%clk 0:00:05.7]} 42. Rxa6 {[%clk 0:00:16.2]} 42... Rh2+ {[%clk 0:00:05.7]}
43. Kc1 {[%clk 0:00:13.6]} 43... d5 {[%clk 0:00:05.3]} 44. Re6+ {[%clk
0:00:12.2]} 44... Kf5 {[%clk 0:00:05.5]} 45. Re1 {[%clk 0:00:11.8]} 45... b4
{[%clk 0:00:03.2]} 46. a4 {[%clk 0:00:10.5]} 46... bxa3 {[%clk 0:00:03.1]} 47.
bxa3 {[%clk 0:00:10.4]} 47... Rh3 {[%clk 0:00:03.5]} 48. Kb2 {[%clk 0:00:09.8]}
48... d3 {[%clk 0:00:03.8]} 49. cxd3 {[%clk 0:00:09.4]} 49... Rxd3 {[%clk
0:00:04.3]} 50. Re8 {[%clk 0:00:09.2]} 50... d4 {[%clk 0:00:03.7]} 51. a4 {[%clk
0:00:09.5]} 51... Re3 {[%clk 0:00:03.8]} 52. Rd8 {[%clk 0:00:07.5]} 52... Ke4
{[%clk 0:00:03.7]} 53. a5 {[%clk 0:00:07.2]} 53... Kd3 {[%clk 0:00:04.1]} 54. a6
{[%clk 0:00:07.6]} 54... Re7 {[%clk 0:00:04.6]} 55. Rh8 {[%clk 0:00:05.3]} 55...
Re6 {[%clk 0:00:03.6]} 56. Rh3+ {[%clk 0:00:05.3]} 56... Kc4 {[%clk 0:00:03.3]}
57. Ra3 {[%clk 0:00:05.7]} 57... Rb6+ {[%clk 0:00:03.1]} 58. Kc2 {[%clk
0:00:04.8]} 58... Rb8 {[%clk 0:00:03.2]} 59. a7 {[%clk 0:00:05.4]} 59... Ra8
{[%clk 0:00:03.8]} 60. Ra4+ {[%clk 0:00:06]} 60... Kb5 {[%clk 0:00:04.1]} 61.
Rxd4 {[%clk 0:00:06.2]} 61... Rxa7 {[%clk 0:00:04.4]} 62. Rd5+ {[%clk
0:00:06.6]} 62... Kc4 {[%clk 0:00:04.6]} 63. Rh5 {[%clk 0:00:06.1]} 63... Ra2+
{[%clk 0:00:04.5]} 64. Kb1 {[%clk 0:00:06.6]} 64... Rg2 {[%clk 0:00:05.2]} 65.
Rh4+ {[%clk 0:00:07]} 65... Kb3 {[%clk 0:00:05.6]} 66. Rh3+ {[%clk 0:00:06.8]}
66... Kb4 {[%clk 0:00:06.1]} 67. Rf3 {[%clk 0:00:07.3]} 67... Re2 {[%clk
0:00:05.1]} 68. Rh3 {[%clk 0:00:07.3]} 68... Rf2 {[%clk 0:00:05.3]} 69. Rg3
{[%clk 0:00:07.8]} 69... Re2 {[%clk 0:00:05.1]} 70. Rh3 {[%clk 0:00:08.4]} 70...
Rf2 {[%clk 0:00:05.5]} 71. Rg3 {[%clk 0:00:09]} 71... Re2 {[%clk 0:00:05.5]} 72.
Rh3 {[%clk 0:00:09.7]} 1/2-1/2